[Event "7th Cesme Open-A 2019"]
[Site "Cesme"]
[Date "2019.06.26"]
[Round "5"]
[White "Kamer, Kayra"]
[Black "Lomsadze, Davit"]
[Result "0-1"]
[ECO "C48"]
[WhiteElo "2353"]
[BlackElo "2292"]
[Annotator "NA"]
[PlyCount "142"]
[EventDate "2019.06.24"]
[EventType "swiss"]
[EventCountry "TUR"]
[SourceTitle "playchess.com"]
[Source "ChessBase"]
[SourceQuality "1"]
[TimeControl "5400+30"]

1. e4 {[%emt 0:02:30]} e5 {[%emt 0:00:30]} 2. Nf3 {[%emt 0:00:00]} Nc6 {[%emt 0:00:00]} 3. Nc3 {[%emt 0:00:00]} Nf6 {[%emt 0:00:00]} 4. Bb5 {[%emt 0:00:30]} Bd6 {[%emt 0:06:30]} 5. d3 {[%emt 0:01:30]} a6 {[%emt 0:00:30]} 6. Bxc6 {[%emt 0:01:30]} dxc6 {[%emt 0:00:30]} 7. Bg5 {[%emt 0:00:00]} h6 {[%emt 0:00:30]} 8. Bh4 {[%emt 0:00:00]} Qe7 {[%emt 0:03:30]} 9. h3 {[%emt 0:01:30]} g5 {[%emt 0:03:30]} 10. Bg3 {[%emt 0:01:30]} c5 {[%emt 0:00:30]} 11. Qd2 {[%emt 0:01:30]} c6 {[%emt 0:03:30]} 12. Na4 {[%emt 0:03:30]} Bc7 {[%emt 0:00:30]} 13. Qc3 {[%emt 0:01:30]} Nd7 {[%emt 0:00:30]} 14. b3 {[%emt 0:01:30]} b5 {[%emt 0:01:30]} 15. Nb2 {[%emt 0:00:00]} f6 {[%emt 0:00:30]} 16. Qd2 {[%emt 0:03:00]} Nf8 {[%emt 0:00:30]} 17. h4 {[%emt 0:05:30]} Rg8 {[%emt 0:03:30]} 18. hxg5 {[%emt 0:06:30]} hxg5 {[%emt 0:00:30]} 19. Nh2 {[%emt 0:01:30]} Ng6 {[%emt 0:02:30]} 20. Nf1 {[%emt 0:00:30]} Nf4 {[%emt 0:00:30]} 21. Ne3 {[%emt 0:00:00]} Be6 {[%emt 0:00:30]} 22. a4 {[%emt 0:01:00]} O-O-O {[%emt 0:01:30]} 23. axb5 {[%emt 0:00:30]} axb5 {[%emt 0:00:00]} 24. O-O {[%emt 0:06:30]} Kb7 {[%emt 0:03:00]} 25. c4 {[%emt 0:12:30]} Ra8 {[%emt 0:02:30]} 26. Rfc1 {[%emt 0:01:30]} Rxa1 {[%emt 0:07:30]} 27. Rxa1 {[%emt 0:00:30]} Bb6 {[%emt 0:00:30]} 28. Nbd1 {[%emt 0:05:30]} Qd7 {[%emt 0:03:30]} 29. cxb5 {[%emt 0:06:30]} cxb5 {[%emt 0:00:30]} 30. Nc3 {[%emt 0:00:00]} b4 {[%emt 0:05:30]} 31. Ncd5 {[%emt 0:03:00]} Nxd5 {[%emt 0:00:30]} 32. exd5 {[%emt 0:00:30]} Bxd5 {[%emt 0:00:30]} 33. Qa2 {[%emt 0:01:30]} Kc7 {[%emt 0:03:30]} 34. f3 {[%emt 0:01:30]} Be6 {[%emt 0:02:30]} 35. Qa6 {[%emt 0:05:30]} Bxb3 {[%emt 0:03:30]} 36. Bf2 {[%emt 0:00:30]} Rd8 {[%emt 0:00:30]} 37. d4 {[%emt 0:01:30]} Qxd4 {[%emt 0:01:30]} 38. Rd1 {[%emt 0:01:30]} Bxd1 {[%emt 0:00:30]} 39. Nc4 {[%emt 0:00:00]} Rb8 {[%emt 0:03:30]} 40. Bxd4 {[%emt 0:00:00]} exd4 {[%emt 0:03:30]} 41. Nb2 {[%emt 0:03:30]} Bb3 {[%emt 0:01:30]} 42. Qd3 {[%emt 0:00:30]} Bd5 {[%emt 0:00:30]} 43. Qh7+ {[%emt 0:05:13]} Kc6 {[%emt 0:00:30]} 44. Qe7 {[%emt 0:00:03]} Ra8 {[%emt 0:08:30]} 45. Qxf6+ {[%emt 0:00:38]} Kb5 {[%emt 0:00:00]} 46. Qxg5 {[%emt 0:02:08]} Rd8 {[%emt 0:00:00]} 47. Kf1 {[%emt 0:06:16]} c4 {[%emt 0:01:30]} 48. Ke2 {[%emt 0:00:01]} b3 {[%emt 0:02:30]} 49. Kd1 {[%emt 0:00:01]} c3 {[%emt 0:04:30]} 50. Nd3 {[%emt 0:00:02]} Rd6 {[%emt 0:01:16]} 51. Qe7 {[%emt 0:02:12]} b2 {[%emt 0:06:57]} 52. Kc2 {[%emt 0:00:51]} Bc5 {[%emt 0:01:11]} 53. Qe8+ {[%emt 0:01:17]} Rc6 {[%emt 0:00:44]} 54. Ne5 {[%emt 0:01:26]} Bd6 {[%emt 0:02:20]} 55. Nxc6 {[%emt 0:02:46]} Bxc6 {[%emt 0:00:30]} 56. Qe2+ {[%emt 0:00:30]} Kb4 {[%emt 0:00:30]} 57. Qa6 {[%emt 0:00:30]} Ba4+ {[%emt 0:00:30]} 58. Kb1 {[%emt 0:00:30]} Bc5 {[%emt 0:00:30]} 59. Ka2 {[%emt 0:02:09]} Bb3+ {[%emt 0:00:47]} 60. Kb1 {[%emt 0:00:02]} Bc4 {[%emt 0:00:00]} 61. Qb7+ {[%emt 0:00:31]} Bb5 {[%emt 0:00:00]} 62. Qe4 {[%emt 0:00:00]} Kb3 {[%emt 0:02:19]} 63. Qc2+ {[%emt 0:01:17]} Ka3 {[%emt 0:01:05]} 64. Qf5 {[%emt 0:00:02]} Kb4 {[%emt 0:00:28]} 65. Qe4 {[%emt 0:00:11]} Bc4 {[%emt 0:01:51]} 66. Qb7+ {[%emt 0:04:42]} Ka4 {[%emt 0:01:17]} 67. Kc2 {[%emt 0:00:31]} Bb5 {[%emt 0:00:25]} 68. f4 {[%emt 0:01:21]} Kb4 {[%emt 0:00:37]} 69. Qe4 {[%emt 0:00:19]} Ka3 {[%emt 0:00:29]} 70. Qf3 {[%emt 0:01:00]} d3+ {[%emt 0:00:53]} 71. Kxc3 {[%emt 0:00:10]} b1=Q {[%emt 0:00:29]} 0-1

[Event "7th Cesme Open-A 2019"]
[Site "Cesme"]
[Date "2019.06.26"]
[Round "5"]
[White "Chighladze, Iveri"]
[Black "Bernadskiy, Vitaliy"]
[Result "0-1"]
[ECO "D38"]
[WhiteElo "2317"]
[BlackElo "2578"]
[Annotator "ChessBase"]
[PlyCount "96"]
[EventDate "2019.06.24"]
[EventType "swiss"]
[EventCountry "TUR"]
[SourceTitle "playchess.com"]
[Source "ChessBase"]
[SourceQuality "1"]
[TimeControl "5400+30"]

1. d4 {[%emt 0:01:30]} d5 {[%emt 0:00:30]} 2. c4 {[%emt 0:00:00]} e6 {[%emt 0:00:30]} 3. Nf3 {[%emt 0:00:00]} Nf6 {[%emt 0:00:00]} 4. Nc3 {[%emt 0:00:30]} Bb4 {[%emt 0:00:00]} 5. Bg5 {[%emt 0:02:30]} h6 {[%emt 0:01:30]} 6. Bxf6 {[%emt 0:10:30]} Qxf6 {[%emt 0:00:30]} 7. Qa4+ {[%emt 0:07:30]} Nc6 {[%emt 0:00:00]} 8. Ne5 {[%emt 0:00:30]} Bd7 {[%emt 0:19:00]} 9. Nxc6 {[%emt 0:37:30]} Bxc3+ {[%emt 0:02:30]} 10. bxc3 {[%emt 0:00:30]} Bxc6 {[%emt 0:00:00]} 11. Qb4 {[%emt 0:05:30]} dxc4 {[%emt 0:01:00]} 12. Qxc4 {[%emt 0:02:30]} O-O {[%emt 0:04:30]} 13. f3 {[%emt 0:00:30]} Bd5 {[%emt 0:02:30]} 14. Qd3 {[%emt 0:14:40]} c5 {[%emt 0:00:30]} 15. e4 {[%emt 0:01:53]} Bc6 {[%emt 0:00:30]} 16. Rd1 {[%emt 0:00:30]} Rfd8 {[%emt 0:00:30]} 17. Be2 {[%emt 0:00:20]} cxd4 {[%emt 0:00:30]} 18. cxd4 {[%emt 0:00:30]} Rd7 {[%emt 0:00:30]} 19. Qe3 {[%emt 0:00:30]} Rad8 {[%emt 0:00:00]} 20. e5 {[%emt 0:06:51]} Qe7 {[%emt 0:01:00]} 21. a3 {[%emt 0:01:07]} Rd5 {[%emt 0:00:30]} 22. Kf2 {[%emt 0:00:56]} Qd7 {[%emt 0:01:30]} 23. Rd2 {[%emt 0:02:54]} Rxd4 {[%emt 0:00:30]} 24. Rxd4 {[%emt 0:00:03]} Qxd4 {[%emt 0:00:30]} 25. Rd1 {[%emt 0:01:04]} Qh4+ {[%emt 0:06:30]} 26. Kg1 {[%emt 0:00:35]} Rd5 {[%emt 0:00:00]} 27. h3 {[%emt 0:00:34]} Qg5 {[%emt 0:04:00]} 28. Qxg5 {[%emt 0:01:32]} hxg5 {[%emt 0:00:30]} 29. Rxd5 {[%emt 0:00:00]} Bxd5 {[%emt 0:00:30]} 30. g3 {[%emt 0:00:34]} Kh7 {[%emt 0:03:30]} 31. Kf2 {[%emt 0:00:07]} f6 {[%emt 0:03:30]} 32. f4 {[%emt 0:00:02]} gxf4 {[%emt 0:01:30]} 33. gxf4 {[%emt 0:00:30]} Kg6 {[%emt 0:00:30]} 34. Bd3+ {[%emt 0:00:16]} Kh5 {[%emt 0:00:30]} 35. Kg3 {[%emt 0:00:08]} fxe5 {[%emt 0:03:30]} 36. fxe5 {[%emt 0:00:02]} a6 {[%emt 0:00:00]} 37. Be2+ {[%emt 0:01:17]} Kg5 {[%emt 0:00:00]} 38. Bg4 {[%emt 0:01:13]} b5 {[%emt 0:00:30]} 39. h4+ {[%emt 0:00:21]} Kg6 {[%emt 0:00:00]} 40. Kf4 {[%emt 0:00:12]} a5 {[%emt 0:00:00]} 41. Ke3 {[%emt 0:01:09]} b4 {[%emt 0:03:30]} 42. axb4 {[%emt 0:00:30]} axb4 {[%emt 0:00:30]} 43. Kd4 {[%emt 0:00:30]} Kf7 {[%emt 0:00:00]} 44. Bh5+ {[%emt 0:00:49]} Ke7 {[%emt 0:00:00]} 45. Bg6 {[%emt 0:00:11]} Kd7 {[%emt 0:01:30]} 46. Kc5 {[%emt 0:00:30]} b3 {[%emt 0:00:00]} 47. Bd3 {[%emt 0:00:19]} b2 {[%emt 0:02:00]} 48. Bb1 {[%emt 0:00:31]} Bf3 {[%emt 0:00:00]} 0-1

[Event "7th Cesme Open-A 2019"]
[Site "Cesme"]
[Date "2019.06.26"]
[Round "5"]
[White "Eminov, Orkhan"]
[Black "Aydincelebi, Kagan"]
[Result "1-0"]
[ECO "B57"]
[WhiteElo "2314"]
[BlackElo "2258"]
[Annotator "NA"]
[PlyCount "63"]
[EventDate "2019.06.24"]
[EventType "swiss"]
[EventCountry "TUR"]
[SourceTitle "playchess.com"]
[Source "ChessBase"]
[SourceQuality "1"]
[TimeControl "5400+30"]

1. e4 {[%emt 0:02:30]} c5 {[%emt 0:00:30]} 2. Nf3 {[%emt 0:00:30]} Nc6 {[%emt 0:00:30]} 3. d4 {[%emt 0:00:30]} cxd4 {[%emt 0:00:00]} 4. Nxd4 {[%emt 0:00:30]} Nf6 {[%emt 0:00:00]} 5. Nc3 {[%emt 0:00:30]} d6 {[%emt 0:00:00]} 6. Bc4 {[%emt 0:03:30]} Qb6 {[%emt 0:02:00]} 7. Nb3 {[%emt 0:07:30]} e6 {[%emt 0:00:30]} 8. Be3 {[%emt 0:02:30]} Qc7 {[%emt 0:00:00]} 9. f4 {[%emt 0:06:30]} a6 {[%emt 0:03:00]} 10. Bd3 {[%emt 0:12:30]} b5 {[%emt 0:01:30]} 11. a3 {[%emt 0:00:00]} Be7 {[%emt 0:00:30]} 12. O-O {[%emt 0:00:00]} Bb7 {[%emt 0:00:00]} 13. Qf3 {[%emt 0:01:30]} O-O {[%emt 0:03:00]} 14. Qg3 {[%emt 0:05:30]} Rac8 {[%emt 0:16:30]} 15. Kh1 {[%emt 0:07:30]} Rfd8 {[%emt 0:04:30]} 16. f5 {[%emt 0:03:30]} exf5 {[%emt 0:08:30]} 17. Rxf5 {[%emt 0:16:30]} Ne5 {[%emt 0:00:30]} 18. Raf1 {[%emt 0:00:00]} Ng6 {[%emt 0:10:30]} 19. Nd5 {[%emt 0:04:00]} Nxd5 {[%emt 0:07:30]} 20. exd5 {[%emt 0:00:30]} Bf6 {[%emt 0:00:30]} 21. Rxf6 {[%emt 0:07:22]} gxf6 {[%emt 0:00:30]} 22. h4 {[%emt 0:00:06]} Kh8 {[%emt 0:01:30]} 23. Rxf6 {[%emt 0:02:37]} Rg8 {[%emt 0:04:30]} 24. Rxd6 {[%emt 0:01:11]} f6 {[%emt 0:00:00]} 25. Bb6 {[%emt 0:02:44]} Qf7 {[%emt 0:08:00]} 26. Rxf6 {[%emt 0:05:59]} Qxf6 {[%emt 0:03:30]} 27. Bd4 {[%emt 0:00:30]} Ne5 {[%emt 0:00:00]} 28. Qxe5 {[%emt 0:00:05]} Qxe5 {[%emt 0:00:00]} 29. Bxe5+ {[%emt 0:00:30]} Rg7 {[%emt 0:00:00]} 30. d6 {[%emt 0:04:30]} Rd8 {[%emt 0:07:00]} 31. Nd4 {[%emt 0:00:32]} Bc8 {[%emt 0:00:30]} 32. Bf5 {[%emt 0:01:28]} 1-0

[Event "7th Cesme Open-A 2019"]
[Site "Cesme"]
[Date "2019.06.26"]
[Round "5"]
[White "Sevgi, Volkan"]
[Black "Kara, Yanki"]
[Result "1/2-1/2"]
[ECO "C41"]
[WhiteElo "2302"]
[BlackElo "2186"]
[Annotator "NA"]
[PlyCount "27"]
[EventDate "2019.06.24"]
[EventType "swiss"]
[EventCountry "TUR"]
[SourceTitle "playchess.com"]
[Source "ChessBase"]
[SourceQuality "1"]
[TimeControl "5400+30"]

1. e4 {[%emt 0:00:30]} e5 {[%emt 0:00:30]} 2. Nf3 {[%emt 0:01:30]} d6 {[%emt 0:00:30]} 3. d4 {[%emt 0:01:30]} Nd7 {[%emt 0:01:30]} 4. Bc4 {[%emt 0:00:30]} c6 {[%emt 0:00:30]} 5. O-O {[%emt 0:01:30]} Be7 {[%emt 0:00:30]} 6. a4 {[%emt 0:03:30]} a5 {[%emt 0:01:30]} 7. c3 {[%emt 0:05:30]} Ngf6 {[%emt 0:02:30]} 8. Re1 {[%emt 0:01:30]} O-O {[%emt 0:00:30]} 9. dxe5 {[%emt 0:03:30]} dxe5 {[%emt 0:07:30]} 10. Qc2 {[%emt 0:04:30]} Qc7 {[%emt 0:01:30]} 11. Nbd2 {[%emt 0:00:30]} Nc5 {[%emt 0:02:30]} 12. b4 {[%emt 0:05:30]} Ne6 {[%emt 0:05:30]} 13. Rb1 {[%emt 0:02:30]} Bd7 {[%emt 0:08:30]} 14. bxa5 {[%emt 0:15:30]} 1/2-1/2

[Event "7th Cesme Open-A 2019"]
[Site "Cesme"]
[Date "2019.06.26"]
[Round "5"]
[White "Guseynov, Alihan"]
[Black "Rzayev, Askar Aliakbar"]
[Result "1-0"]
[ECO "E34"]
[WhiteElo "2274"]
[BlackElo "2089"]
[Annotator "NA"]
[PlyCount "97"]
[EventDate "2019.06.24"]
[EventType "swiss"]
[EventCountry "TUR"]
[SourceTitle "playchess.com"]
[Source "ChessBase"]
[SourceQuality "1"]
[TimeControl "5400+30"]

1. d4 {[%emt 0:00:30]} Nf6 {[%emt 0:02:30]} 2. c4 {[%emt 0:00:30]} e6 {[%emt 0:00:00]} 3. Nc3 {[%emt 0:00:30]} Bb4 {[%emt 0:00:00]} 4. Qc2 {[%emt 0:01:30]} d5 {[%emt 0:00:30]} 5. cxd5 {[%emt 0:00:30]} Qxd5 {[%emt 0:00:00]} 6. Nf3 {[%emt 0:00:30]} Qf5 {[%emt 0:00:00]} 7. Qb3 {[%emt 0:03:30]} Nc6 {[%emt 0:00:30]} 8. g3 {[%emt 0:05:30]} Qd5 {[%emt 0:05:30]} 9. Qxd5 {[%emt 0:14:30]} exd5 {[%emt 0:02:30]} 10. Bg2 {[%emt 0:00:30]} Ne4 {[%emt 0:02:30]} 11. Bd2 {[%emt 0:00:30]} Nxd2 {[%emt 0:04:30]} 12. Kxd2 {[%emt 0:00:00]} Be6 {[%emt 0:01:30]} 13. e3 {[%emt 0:03:00]} Na5 {[%emt 0:03:30]} 14. Ng5 {[%emt 0:10:30]} Nc4+ {[%emt 0:02:30]} 15. Ke2 {[%emt 0:04:30]} Bxc3 {[%emt 0:02:30]} 16. bxc3 {[%emt 0:01:30]} h6 {[%emt 0:01:30]} 17. Nxe6 {[%emt 0:00:30]} fxe6 {[%emt 0:00:00]} 18. e4 {[%emt 0:02:30]} c6 {[%emt 0:01:00]} 19. f4 {[%emt 0:01:30]} Nd6 {[%emt 0:05:30]} 20. e5 {[%emt 0:13:30]} Nc4 {[%emt 0:00:30]} 21. h4 {[%emt 0:00:30]} Ke7 {[%emt 0:02:30]} 22. h5 {[%emt 0:00:30]} b5 {[%emt 0:01:30]} 23. Rh4 {[%emt 0:02:30]} Kf7 {[%emt 0:04:30]} 24. Rg4 {[%emt 0:07:30]} Rhe8 {[%emt 0:02:30]} 25. Rg6 {[%emt 0:01:30]} Rac8 {[%emt 0:01:30]} 26. f5 {[%emt 0:05:53]} exf5 {[%emt 0:02:30]} 27. Rf1 {[%emt 0:00:10]} Kg8 {[%emt 0:01:30]} 28. Rxf5 {[%emt 0:00:13]} Nb6 {[%emt 0:00:30]} 29. Rff6 {[%emt 0:04:36]} c5 {[%emt 0:03:30]} 30. Rc6 {[%emt 0:00:10]} b4 {[%emt 0:01:30]} 31. Kd3 {[%emt 0:05:54]} bxc3 {[%emt 0:03:30]} 32. Kxc3 {[%emt 0:00:50]} cxd4+ {[%emt 0:05:30]} 33. Kxd4 {[%emt 0:00:06]} Rxc6 {[%emt 0:02:30]} 34. Rxc6 {[%emt 0:00:03]} Kf8 {[%emt 0:00:00]} 35. Bxd5 {[%emt 0:04:35]} Rd8 {[%emt 0:02:00]} 36. Rc5 {[%emt 0:03:06]} a6 {[%emt 0:08:30]} 37. Ke4 {[%emt 0:00:25]} Nxd5 {[%emt 0:02:30]} 38. Rxd5 {[%emt 0:00:30]} Rb8 {[%emt 0:00:30]} 39. Rd6 {[%emt 0:00:30]} Rb4+ {[%emt 0:00:30]} 40. Kf5 {[%emt 0:00:30]} Ra4 {[%emt 0:00:30]} 41. Ke6 {[%emt 0:00:40]} Kg8 {[%emt 0:05:30]} 42. Kd7 {[%emt 0:01:27]} Rxa2 {[%emt 0:03:38]} 43. e6 {[%emt 0:00:28]} Re2 {[%emt 0:01:00]} 44. Rd3 {[%emt 0:00:52]} Kf8 {[%emt 0:00:54]} 45. Rf3+ {[%emt 0:00:30]} Kg8 {[%emt 0:00:30]} 46. e7 {[%emt 0:00:00]} Rd2+ {[%emt 0:00:01]} 47. Kc6 {[%emt 0:00:19]} Rc2+ {[%emt 0:00:00]} 48. Kb7 {[%emt 0:00:15]} Rb2+ {[%emt 0:00:33]} 49. Ka7 {[%emt 0:00:05]} 1-0

[Event "7th Cesme Open-A 2019"]
[Site "Cesme"]
[Date "2019.06.26"]
[Round "5"]
[White "Kazimova, Narmin"]
[Black "Gokerkan, Cem Kaan"]
[Result "1/2-1/2"]
[ECO "A35"]
[WhiteElo "2271"]
[BlackElo "2415"]
[Annotator "NA"]
[PlyCount "108"]
[EventDate "2019.06.24"]
[EventType "swiss"]
[EventCountry "TUR"]
[SourceTitle "playchess.com"]
[Source "ChessBase"]
[SourceQuality "1"]
[TimeControl "5400+30"]

1. c4 {[%emt 0:00:30]} c5 {[%emt 0:06:30]} 2. Nf3 {[%emt 0:00:30]} Nc6 {[%emt 0:00:30]} 3. Nc3 {[%emt 0:01:30]} g6 {[%emt 0:04:30]} 4. e3 {[%emt 0:00:30]} Bg7 {[%emt 0:06:30]} 5. d4 {[%emt 0:02:30]} Nf6 {[%emt 0:00:30]} 6. d5 {[%emt 0:03:30]} Nb8 {[%emt 0:04:30]} 7. e4 {[%emt 0:04:30]} d6 {[%emt 0:00:30]} 8. h3 {[%emt 0:02:30]} O-O {[%emt 0:00:00]} 9. Bd3 {[%emt 0:01:30]} e6 {[%emt 0:08:00]} 10. O-O {[%emt 0:03:30]} e5 {[%emt 0:00:30]} 11. a3 {[%emt 0:03:30]} Nh5 {[%emt 0:00:30]} 12. Re1 {[%emt 0:05:30]} Nf4 {[%emt 0:09:30]} 13. Bxf4 {[%emt 0:01:30]} exf4 {[%emt 0:00:30]} 14. Qd2 {[%emt 0:00:30]} Nd7 {[%emt 0:11:30]} 15. Qxf4 {[%emt 0:02:30]} Ne5 {[%emt 0:00:30]} 16. Nxe5 {[%emt 0:11:30]} Bxe5 {[%emt 0:00:30]} 17. Qd2 {[%emt 0:00:00]} Qh4 {[%emt 0:00:30]} 18. Ne2 {[%emt 0:06:00]} g5 {[%emt 0:06:30]} 19. Rf1 {[%emt 0:17:30]} Kh8 {[%emt 0:01:30]} 20. Ng3 {[%emt 0:21:30]} g4 {[%emt 0:07:30]} 21. Nf5 {[%emt 0:00:44]} Bxf5 {[%emt 0:00:30]} 22. exf5 {[%emt 0:01:06]} Rg8 {[%emt 0:00:30]} 23. g3 {[%emt 0:03:04]} Qxh3 {[%emt 0:05:30]} 24. Rab1 {[%emt 0:02:58]} f6 {[%emt 0:05:50]} 25. Be4 {[%emt 0:00:21]} b6 {[%emt 0:07:15]} 26. b4 {[%emt 0:00:46]} Rad8 {[%emt 0:01:14]} 27. Rfe1 {[%emt 0:01:31]} Rc8 {[%emt 0:00:59]} 28. Bg2 {[%emt 0:01:30]} Qh5 {[%emt 0:00:03]} 29. Qd3 {[%emt 0:00:22]} Qg5 {[%emt 0:00:37]} 30. b5 {[%emt 0:01:03]} h5 {[%emt 0:00:34]} 31. Qe3 {[%emt 0:00:18]} Qg7 {[%emt 0:00:46]} 32. Rbd1 {[%emt 0:00:38]} Rce8 {[%emt 0:00:19]} 33. Qb3 {[%emt 0:00:35]} Qh7 {[%emt 0:00:26]} 34. Be4 {[%emt 0:00:27]} h4 {[%emt 0:04:15]} 35. Kg2 {[%emt 0:00:04]} Kg7 {[%emt 0:00:00]} 36. Qd3 {[%emt 0:00:48]} Re7 {[%emt 0:01:49]} 37. Rh1 {[%emt 0:00:43]} h3+ {[%emt 0:00:10]} 38. Kh2 {[%emt 0:00:41]} Rge8 {[%emt 0:00:01]} 39. Rde1 {[%emt 0:00:10]} Bd4 {[%emt 0:01:24]} 40. Rhf1 {[%emt 0:00:01]} Re5 {[%emt 0:01:03]} 41. Re2 {[%emt 0:00:51]} Kf8 {[%emt 0:01:11]} 42. Rfe1 {[%emt 0:00:19]} Qh6 {[%emt 0:02:37]} 43. Qc2 {[%emt 0:00:47]} Qh5 {[%emt 0:01:45]} 44. Qd3 {[%emt 0:00:11]} R8e7 {[%emt 0:00:00]} 45. Qc2 {[%emt 0:01:11]} Qe8 {[%emt 0:00:00]} 46. f4 {[%emt 0:00:18]} gxf3 {[%emt 0:00:53]} 47. Bxf3 {[%emt 0:00:03]} Re3 {[%emt 0:02:07]} 48. Rxe3 {[%emt 0:00:18]} Rxe3 {[%emt 0:00:00]} 49. Rxe3 {[%emt 0:01:01]} Qxe3 {[%emt 0:00:00]} 50. Qe2 {[%emt 0:00:07]} Qxa3 {[%emt 0:00:08]} 51. Kxh3 {[%emt 0:00:51]} Be5 {[%emt 0:00:09]} 52. Qe4 {[%emt 0:00:21]} Qc3 {[%emt 0:02:01]} 53. Qg4 {[%emt 0:00:02]} Qe3 {[%emt 0:00:00]} 54. Qh5 {[%emt 0:00:37]} Qg5 {[%emt 0:01:18]} 1/2-1/2

[Event "7th Cesme Open-A 2019"]
[Site "Cesme"]
[Date "2019.06.26"]
[Round "5"]
[White "Ozenir, Ekin Baris"]
[Black "Koksal, Ege"]
[Result "1-0"]
[ECO "A45"]
[WhiteElo "2250"]
[BlackElo "2363"]
[Annotator "NA"]
[PlyCount "85"]
[EventDate "2019.06.24"]
[EventType "swiss"]
[EventCountry "TUR"]
[SourceTitle "playchess.com"]
[Source "ChessBase"]
[SourceQuality "1"]
[TimeControl "5400+30"]

1. d4 {[%emt 0:00:30]} Nf6 {[%emt 0:06:30]} 2. Bg5 {[%emt 0:00:30]} Ne4 {[%emt 0:00:00]} 3. h4 {[%emt 0:00:30]} c5 {[%emt 0:00:00]} 4. d5 {[%emt 0:00:30]} Qb6 {[%emt 0:03:30]} 5. Nd2 {[%emt 0:00:30]} h6 {[%emt 0:14:30]} 6. Nxe4 {[%emt 0:00:30]} hxg5 {[%emt 0:00:30]} 7. c3 {[%emt 0:01:30]} gxh4 {[%emt 0:05:30]} 8. Nf3 {[%emt 0:00:30]} d6 {[%emt 0:00:30]} 9. e3 {[%emt 0:06:30]} Bf5 {[%emt 0:03:30]} 10. Nfd2 {[%emt 0:02:30]} Nd7 {[%emt 0:07:30]} 11. Nc4 {[%emt 0:03:30]} Qc7 {[%emt 0:00:00]} 12. Ng5 {[%emt 0:01:30]} Nf6 {[%emt 0:06:00]} 13. e4 {[%emt 0:11:30]} Rh5 {[%emt 0:13:30]} 14. exf5 {[%emt 0:06:30]} Rxg5 {[%emt 0:00:30]} 15. Ne3 {[%emt 0:00:00]} O-O-O {[%emt 0:01:30]} 16. Qa4 {[%emt 0:04:00]} Kb8 {[%emt 0:04:30]} 17. Be2 {[%emt 0:01:30]} c4 {[%emt 0:05:30]} 18. Rxh4 {[%emt 0:02:30]} g6 {[%emt 0:00:30]} 19. Rxc4 {[%emt 0:01:30]} Qb6 {[%emt 0:00:00]} 20. Rb4 {[%emt 0:01:30]} Qc5 {[%emt 0:01:00]} 21. O-O-O {[%emt 0:07:30]} Bh6 {[%emt 0:01:30]} 22. Kc2 {[%emt 0:06:30]} gxf5 {[%emt 0:08:14]} 23. Rdd4 {[%emt 0:02:30]} Nd7 {[%emt 0:00:56]} 24. Qb3 {[%emt 0:08:30]} Qc7 {[%emt 0:01:29]} 25. Rh4 {[%emt 0:03:30]} Nc5 {[%emt 0:01:58]} 26. Qc4 {[%emt 0:00:30]} Bg7 {[%emt 0:00:21]} 27. Qf4 {[%emt 0:04:30]} Bf6 {[%emt 0:00:59]} 28. Rh7 {[%emt 0:01:30]} Ne4 {[%emt 0:05:04]} 29. Ba6 {[%emt 0:04:35]} Nc5 {[%emt 0:00:34]} 30. Bf1 {[%emt 0:00:50]} Qa5 {[%emt 0:02:08]} 31. Rb5 {[%emt 0:02:52]} Qc7 {[%emt 0:00:43]} 32. Nxf5 {[%emt 0:05:30]} e5 {[%emt 0:03:08]} 33. Qf3 {[%emt 0:02:35]} e4 {[%emt 0:00:01]} 34. Qf4 {[%emt 0:01:37]} Nd3 {[%emt 0:00:36]} 35. Qxe4 {[%emt 0:04:08]} Nxf2 {[%emt 0:00:01]} 36. Qf4 {[%emt 0:02:27]} Ng4 {[%emt 0:00:01]} 37. Nd4 {[%emt 0:00:21]} Re8 {[%emt 0:01:21]} 38. Ne6 {[%emt 0:00:33]} Qd7 {[%emt 0:02:39]} 39. Rxf7 {[%emt 0:00:28]} Ne3+ {[%emt 0:01:04]} 40. Kb3 {[%emt 0:00:29]} Re7 {[%emt 0:01:40]} 41. Rf8+ {[%emt 0:00:20]} Re8 {[%emt 0:00:35]} 42. Rxe8+ {[%emt 0:00:30]} Qxe8 {[%emt 0:00:00]} 43. Qxd6+ {[%emt 0:00:00]} 1-0

[Event "7th Cesme Open-A 2019"]
[Site "Cesme"]
[Date "2019.06.26"]
[Round "5"]
[White "Bashirov, Teymur"]
[Black "Rzayev, Bahruz"]
[Result "1-0"]
[ECO "B42"]
[WhiteElo "2238"]
[BlackElo "2340"]
[Annotator "NA"]
[PlyCount "67"]
[EventDate "2019.06.24"]
[EventType "swiss"]
[EventCountry "TUR"]
[SourceTitle "playchess.com"]
[Source "ChessBase"]
[SourceQuality "1"]
[TimeControl "5400+30"]

1. e4 {[%emt 0:00:30]} c5 {[%emt 0:00:30]} 2. Nf3 {[%emt 0:01:30]} e6 {[%emt 0:00:00]} 3. d4 {[%emt 0:03:30]} cxd4 {[%emt 0:00:00]} 4. Nxd4 {[%emt 0:02:30]} a6 {[%emt 0:00:30]} 5. Bd3 {[%emt 0:01:30]} Bc5 {[%emt 0:00:30]} 6. Nb3 {[%emt 0:01:30]} Ba7 {[%emt 0:00:30]} 7. O-O {[%emt 0:02:30]} Ne7 {[%emt 0:01:30]} 8. Nc3 {[%emt 0:01:30]} O-O {[%emt 0:01:30]} 9. Qe2 {[%emt 0:00:30]} f5 {[%emt 0:08:30]} 10. Kh1 {[%emt 0:05:30]} f4 {[%emt 0:05:30]} 11. Nd2 {[%emt 0:01:30]} Nbc6 {[%emt 0:01:30]} 12. Qh5 {[%emt 0:06:30]} Nb4 {[%emt 0:03:30]} 13. Nf3 {[%emt 0:02:30]} d6 {[%emt 0:10:30]} 14. Bc4 {[%emt 0:04:30]} h6 {[%emt 0:10:30]} 15. Bb3 {[%emt 0:02:30]} Rf6 {[%emt 0:01:30]} 16. Bd2 {[%emt 0:01:30]} Nbc6 {[%emt 0:02:30]} 17. Rad1 {[%emt 0:02:30]} Qf8 {[%emt 0:03:30]} 18. Qh3 {[%emt 0:01:30]} Kh8 {[%emt 0:00:30]} 19. e5 {[%emt 0:03:30]} Nxe5 {[%emt 0:07:30]} 20. Nxe5 {[%emt 0:03:30]} dxe5 {[%emt 0:00:30]} 21. Ne4 {[%emt 0:00:30]} Rg6 {[%emt 0:00:30]} 22. Bb4 {[%emt 0:18:30]} a5 {[%emt 0:07:30]} 23. Bxe7 {[%emt 0:03:30]} Qxe7 {[%emt 0:00:30]} 24. Qh5 {[%emt 0:00:00]} Kh7 {[%emt 0:02:30]} 25. c3 {[%emt 0:01:00]} Bd7 {[%emt 0:03:30]} 26. Rxd7 {[%emt 0:01:30]} Qxd7 {[%emt 0:00:00]} 27. Bc2 {[%emt 0:01:30]} Qe7 {[%emt 0:03:00]} 28. h4 {[%emt 0:02:30]} Rh8 {[%emt 0:04:30]} 29. Rd1 {[%emt 0:04:30]} Rd8 {[%emt 0:00:30]} 30. Rxd8 {[%emt 0:02:37]} Qxd8 {[%emt 0:00:30]} 31. Ng5+ {[%emt 0:00:30]} Kg8 {[%emt 0:00:30]} 32. Qxg6 {[%emt 0:00:30]} hxg5 {[%emt 0:00:30]} 33. Qxe6+ {[%emt 0:02:16]} Kh8 {[%emt 0:00:30]} 34. Qg6 {[%emt 0:00:28]} 1-0